[Event "IV Elllobregat Open Chess Tmnt"]
[Site "Sant Boi de Llobregat, Spain"]
[Date "2023.11.30"]
[Round "1.22"]
[White "Jacobson, Brandon"]
[Black "Gombocz, Ferenc Jr."]
[Result "1/2-1/2"]
[TimeControl "90min/40moves + 15min/end + 30sec from move 1"]
[WhiteFideId "30901561"]
[BlackFideId "775029"]
[WhiteElo "2538"]
[BlackElo "2319"]

1. c4 {[%clk 01:30:40]} {[%emt 00:00:18]} c5 {[%clk 01:30:53]} {[%emt
00:00:07]} 2. Nf3 {[%clk 01:30:21]} {[%emt 00:00:49]} Nc6 {[%clk 01:30:20]}
{[%emt 00:01:04]} 3. Nc3 {[%clk 01:29:38]} {[%emt 00:01:13]} e5 {[%clk
01:29:17]} {[%emt 00:01:32]} 4. e3 {[%clk 01:25:44]} {[%emt 00:04:24]} Nf6
{[%clk 01:28:54]} {[%emt 00:00:54]} 5. d4 {[%clk 01:26:04]} {[%emt 00:00:10]}
e4 {[%clk 01:28:39]} {[%emt 00:00:44]} 6. d5 {[%clk 01:25:51]} {[%emt
00:00:42]} exf3 {[%clk 01:28:11]} {[%emt 00:00:58]} 7. dxc6 {[%clk 01:26:16]}
{[%emt 00:00:05]} dxc6 {[%clk 01:26:51]} {[%emt 00:01:51]} 8. Qxd8+ {[%clk
01:26:14]} {[%emt 00:00:31]} Kxd8 {[%clk 01:27:15]} {[%emt 00:00:06]} 9. gxf3
{[%clk 01:26:40]} {[%emt 00:00:03]} g6 {[%clk 01:21:24]} {[%emt 00:06:22]} 10.
b3 {[%clk 01:26:13]} {[%emt 00:00:56]} Bg7 {[%clk 01:19:42]} {[%emt 00:02:12]}
11. Bb2 {[%clk 01:26:37]} {[%emt 00:00:06]} Nh5 {[%clk 01:12:04]} {[%emt
00:08:08]} 12. O-O-O+ {[%clk 01:25:38]} {[%emt 00:01:29]} Kc7 {[%clk 01:11:28]}
{[%emt 00:01:05]} 13. Be2 {[%clk 01:20:34]} {[%emt 00:05:35]} Bf5 {[%clk
00:49:58]} {[%emt 00:21:59]} 14. f4 {[%clk 00:53:08]} {[%emt 00:27:57]} Nf6
{[%clk 00:48:44]} {[%emt 00:01:44]} 15. Na4 {[%clk 00:52:55]} {[%emt 00:00:43]}
b6 {[%clk 00:48:39]} {[%emt 00:00:35]} 16. Be5+ {[%clk 00:52:48]} {[%emt
00:00:36]} Kb7 {[%clk 00:47:43]} {[%emt 00:01:26]} 17. Bf3 {[%clk 00:53:03]}
{[%emt 00:00:15]} Rhd8 {[%clk 00:43:45]} {[%emt 00:04:28]} 18. Nc3 {[%clk
00:48:30]} {[%emt 00:05:04]} Ne8 {[%clk 00:38:30]} {[%emt 00:05:45]} 19. Ne2
{[%clk 00:36:25]} {[%emt 00:12:35]} Bxe5 {[%clk 00:35:43]} {[%emt 00:03:18]} 20.
fxe5 {[%clk 00:36:52]} {[%emt 00:00:03]} f6 {[%clk 00:35:39]} {[%emt 00:00:33]}
21. e4 {[%clk 00:28:44]} {[%emt 00:08:38]} Bd7 {[%clk 00:33:40]} {[%emt
00:02:28]} 22. exf6 {[%clk 00:26:43]} {[%emt 00:02:32]} Nxf6 {[%clk 00:34:04]}
{[%emt 00:00:06]} 23. Rhg1 {[%clk 00:21:22]} {[%emt 00:05:51]} Kc7 {[%clk
00:29:59]} {[%emt 00:04:35]} 24. e5 {[%clk 00:18:39]} {[%emt 00:03:14]} Ne8
{[%clk 00:28:27]} {[%emt 00:02:00]} 25. h4 {[%clk 00:15:27]} {[%emt 00:03:43]}
Ng7 {[%clk 00:27:03]} {[%emt 00:01:54]} 26. h5 {[%clk 00:15:15]} {[%emt
00:00:42]} Rf8 {[%clk 00:23:21]} {[%emt 00:04:11]} 27. Rd3 {[%clk 00:15:00]}
{[%emt 00:00:45]} Be8 {[%clk 00:16:55]} {[%emt 00:06:56]} 28. hxg6 {[%clk
00:10:59]} {[%emt 00:04:31]} hxg6 {[%clk 00:12:59]} {[%emt 00:04:27]} 29. Rg2
{[%clk 00:11:05]} {[%emt 00:00:23]} Rd8 {[%clk 00:11:04]} {[%emt 00:02:25]} 30.
Be4 {[%clk 00:10:03]} {[%emt 00:01:32]} Rxd3 {[%clk 00:10:29]} {[%emt
00:01:06]} 31. Bxd3 {[%clk 00:10:31]} {[%emt 00:00:02]} Ne6 {[%clk 00:10:02]}
{[%emt 00:00:57]} 32. Kd2 {[%clk 00:06:24]} {[%emt 00:04:37]} g5 {[%clk
00:04:15]} {[%emt 00:06:17]} 33. Rh2 {[%clk 00:06:23]} {[%emt 00:00:31]} Nd4
{[%clk 00:04:03]} {[%emt 00:00:43]} 34. Nxd4 {[%clk 00:03:13]} {[%emt
00:03:40]} cxd4 {[%clk 00:04:27]} {[%emt 00:00:07]} 35. Be4 {[%clk 00:02:43]}
{[%emt 00:01:00]} Kd7 {[%clk 00:03:33]} {[%emt 00:01:23]} 36. Kd3 {[%clk
00:00:40]} {[%emt 00:02:32]} Ke6 {[%clk 00:02:25]} {[%emt 00:01:38]} 37. Kxd4
{[%clk 00:00:36]} {[%emt 00:00:35]} c5+ {[%clk 00:02:47]} {[%emt 00:00:08]} 38.
Ke3 {[%clk 00:00:59]} {[%emt 00:00:08]} Kxe5 {[%clk 00:03:03]} {[%emt
00:00:14]} 39. Rh7 {[%clk 00:00:38]} {[%emt 00:00:50]} Rf7 {[%clk 00:02:40]}
{[%emt 00:00:52]} 40. Rh5 {[%clk 00:15:44]} {[%emt 00:00:25]} Kf6 {[%clk
00:15:45]} {[%emt 00:02:25]} 41. Rh6+ {[%clk 00:16:11]} {[%emt 00:00:02]} Ke5
{[%clk 00:04:33]} {[%emt 00:11:42]} 42. Rg6 {[%clk 00:16:30]} {[%emt 00:00:11]}
Rxf2 {[%clk 00:04:25]} {[%emt 00:00:39]} 43. Kxf2 {[%clk 00:02:33]} {[%emt
00:14:28]} Bxg6 {[%clk 00:04:50]} {[%emt 00:00:05]} 44. Bxg6 {[%clk 00:02:59]}
{[%emt 00:00:03]} Kd4 {[%clk 00:05:16]} {[%emt 00:00:04]} 45. Bc2 {[%clk
00:02:06]} {[%emt 00:01:23]} Kc3 {[%clk 00:05:31]} {[%emt 00:00:15]} 46. Bd1
{[%clk 00:02:34]} {[%emt 00:00:01]} Kd2 {[%clk 00:05:47]} {[%emt 00:00:14]} 47.
Bg4 {[%clk 00:01:31]} {[%emt 00:01:34]} Kc2 {[%clk 00:06:07]} {[%emt 00:00:10]}
48. Ke3 {[%clk 00:01:03]} {[%emt 00:00:58]} Kb2 {[%clk 00:05:56]} {[%emt
00:00:41]} 49. Kd3 {[%clk 00:01:27]} {[%emt 00:00:06]} Kxa2 {[%clk 00:06:05]}
{[%emt 00:00:21]} 50. Kc3 {[%clk 00:01:52]} {[%emt 00:00:04]} Ka3 {[%clk
00:04:29]} {[%emt 00:02:06]} 51. Be6 {[%clk 00:02:15]} {[%emt 00:00:06]} Ka2
{[%clk 00:04:50]} {[%emt 00:00:10]} 52. Bd7 {[%clk 00:01:29]} {[%emt 00:01:16]}
Ka3 {[%clk 00:05:03]} {[%emt 00:00:17]} 53. Bc8 {[%clk 00:01:20]} {[%emt
00:00:39]} Ka2 {[%clk 00:05:22]} {[%emt 00:00:10]} 1/2-1/2

[Event "IV Elllobregat Open Chess Tmnt"]
[Site "Sant Boi de Llobregat, Spain"]
[Date "2023.11.30"]
[Round "1.23"]
[White "Fiorito, Fabian"]
[Black "Alsina Leal, Daniel"]
[Result "1/2-1/2"]
[TimeControl "90min/40moves + 15min/end + 30sec from move 1"]
[WhiteFideId "100200"]
[BlackFideId "2252627"]
[WhiteElo "2318"]
[BlackElo "2533"]

1. Nf3 {[%clk 01:30:50]} {[%emt 00:00:09]} c5 {[%clk 01:30:39]} {[%emt
00:00:21]} 2. b3 {[%clk 01:28:57]} {[%emt 00:02:23]} d5 {[%clk 01:26:21]}
{[%emt 00:04:48]} 3. e3 {[%clk 01:29:20]} {[%emt 00:00:08]} Nc6 {[%clk
01:24:19]} {[%emt 00:02:32]} 4. Bb2 {[%clk 01:28:55]} {[%emt 00:00:55]} e6
{[%clk 01:24:27]} {[%emt 00:00:22]} 5. d4 {[%clk 01:24:50]} {[%emt 00:04:36]}
Nf6 {[%clk 01:18:57]} {[%emt 00:06:00]} 6. a3 {[%clk 01:23:45]} {[%emt
00:01:34]} Be7 {[%clk 01:15:53]} {[%emt 00:03:34]} 7. Nbd2 {[%clk 01:22:22]}
{[%emt 00:01:54]} O-O {[%clk 01:15:41]} {[%emt 00:00:42]} 8. dxc5 {[%clk
01:18:16]} {[%emt 00:04:36]} Bxc5 {[%clk 01:09:41]} {[%emt 00:06:30]} 9. b4
{[%clk 01:18:23]} {[%emt 00:00:23]} Be7 {[%clk 01:08:33]} {[%emt 00:01:38]} 10.
Bd3 {[%clk 01:13:42]} {[%emt 00:05:11]} b6 {[%clk 01:07:00]} {[%emt 00:02:04]}
11. O-O {[%clk 01:13:58]} {[%emt 00:00:15]} Bb7 {[%clk 01:07:08]} {[%emt
00:00:22]} 12. Qe2 {[%clk 01:08:11]} {[%emt 00:06:16]} a5 {[%clk 00:58:55]}
{[%emt 00:08:43]} 13. b5 {[%clk 01:04:31]} {[%emt 00:04:11]} Nb8 {[%clk
00:59:11]} {[%emt 00:00:14]} 14. Rfd1 {[%clk 01:03:33]} {[%emt 00:01:27]} Nbd7
{[%clk 00:58:55]} {[%emt 00:00:47]} 15. c4 {[%clk 01:03:00]} {[%emt 00:01:03]}
Rc8 {[%clk 00:53:13]} {[%emt 00:06:12]} 16. Rac1 {[%clk 01:01:30]} {[%emt
00:02:00]} Bc5 {[%clk 00:42:36]} {[%emt 00:11:07]} 17. cxd5 {[%clk 00:55:46]}
{[%emt 00:06:13]} Bxd5 {[%clk 00:28:30]} {[%emt 00:14:36]} 18. Bc4 {[%clk
00:53:49]} {[%emt 00:02:26]} Qe7 {[%clk 00:27:33]} {[%emt 00:01:28]} 19. Bxd5
{[%clk 00:53:56]} {[%emt 00:00:24]} exd5 {[%clk 00:24:07]} {[%emt 00:03:56]} 20.
a4 {[%clk 00:46:01]} {[%emt 00:08:25]} Ba3 {[%clk 00:23:36]} {[%emt 00:01:01]}
21. Bxa3 {[%clk 00:42:45]} {[%emt 00:03:46]} Qxa3 {[%clk 00:24:00]} {[%emt
00:00:05]} 22. Ra1 {[%clk 00:43:10]} {[%emt 00:00:05]} Qc3 {[%clk 00:16:54]}
{[%emt 00:07:35]} 23. Nd4 {[%clk 00:41:55]} {[%emt 00:01:46]} Ne5 {[%clk
00:16:59]} {[%emt 00:00:25]} 24. N2f3 {[%clk 00:40:36]} {[%emt 00:01:49]} Nxf3+
{[%clk 00:16:23]} {[%emt 00:01:06]} 25. Qxf3 {[%clk 00:32:44]} {[%emt
00:08:23]} Rc4 {[%clk 00:16:22]} {[%emt 00:00:30]} 26. h3 {[%clk 00:31:52]}
{[%emt 00:01:22]} Re8 {[%clk 00:13:16]} {[%emt 00:03:36]} 27. Qf5 {[%clk
00:23:49]} {[%emt 00:08:34]} Qb4 {[%clk 00:12:19]} {[%emt 00:01:27]} 28. Nc6
{[%clk 00:20:20]} {[%emt 00:03:58]} Qd6 {[%clk 00:10:58]} {[%emt 00:01:50]} 29.
Rd4 {[%clk 00:18:31]} {[%emt 00:02:20]} g6 {[%clk 00:08:02]} {[%emt 00:03:27]}
30. Qd3 {[%clk 00:16:53]} {[%emt 00:02:07]} Qc5 {[%clk 00:07:37]} {[%emt
00:00:56]} 31. Rd1 {[%clk 00:14:35]} {[%emt 00:02:47]} Rc3 {[%clk 00:06:53]}
{[%emt 00:01:13]} 32. Qe2 {[%clk 00:12:02]} {[%emt 00:03:03]} Kg7 {[%clk
00:05:13]} {[%emt 00:02:10]} 33. Qf3 {[%clk 00:09:42]} {[%emt 00:02:49]} Rc4
{[%clk 00:04:12]} {[%emt 00:01:32]} 34. Qe2 {[%clk 00:04:01]} {[%emt 00:06:12]}
Re4 {[%clk 00:03:12]} {[%emt 00:01:29]} 35. Qa2 {[%clk 00:03:32]} {[%emt
00:00:59]} Rc2 {[%clk 00:02:06]} {[%emt 00:01:36]} 36. Qb1 {[%clk 00:02:46]}
{[%emt 00:01:17]} Rxd4 {[%clk 00:01:34]} {[%emt 00:01:01]} 37. Nxd4 {[%clk
00:01:39]} {[%emt 00:01:37]} Rc4 {[%clk 00:01:58]} {[%emt 00:00:07]} 38. Qa2
{[%clk 00:00:50]} {[%emt 00:01:19]} Qb4 {[%clk 00:02:09]} {[%emt 00:00:18]} 39.
Ra1 {[%clk 00:01:08]} {[%emt 00:00:13]} Ne4 {[%clk 00:01:19]} {[%emt 00:01:19]}
40. Nc6 {[%clk 00:16:25]} {[%emt 00:00:13]} Qc3 {[%clk 00:15:44]} {[%emt
00:01:05]} 41. Rd1 {[%clk 00:13:18]} {[%emt 00:03:37]} Qf6 {[%clk 00:07:59]}
{[%emt 00:08:16]} 42. Rd4 {[%clk 00:05:30]} {[%emt 00:08:18]} Rc1+ {[%clk
00:02:57]} {[%emt 00:05:32]} 43. Kh2 {[%clk 00:05:55]} {[%emt 00:00:05]} Nxf2
{[%clk 00:02:07]} {[%emt 00:01:19]} 44. Qxd5 {[%clk 00:05:42]} {[%emt
00:00:43]} Rc5 {[%clk 00:00:40]} {[%emt 00:01:57]} 45. Qf3 {[%clk 00:05:21]}
{[%emt 00:00:51]} Rf5 {[%clk 00:00:45]} {[%emt 00:00:25]} 46. Rf4 {[%clk
00:05:47]} {[%emt 00:00:04]} Nd3 {[%clk 00:00:49]} {[%emt 00:00:25]} 47. Rxf5
{[%clk 00:06:05]} {[%emt 00:00:12]} Qxf5 {[%clk 00:01:14]} {[%emt 00:00:05]} 48.
Qd1 {[%clk 00:02:51]} {[%emt 00:03:44]} Nc5 {[%clk 00:01:29]} {[%emt 00:00:14]}
49. Qd8 {[%clk 00:02:40]} {[%emt 00:00:42]} Qf6 {[%clk 00:00:34]} {[%emt
00:01:26]} 50. Qxb6 {[%clk 00:02:15]} {[%emt 00:00:55]} Qd6+ {[%clk 00:00:58]}
{[%emt 00:00:05]} 51. Kh1 {[%clk 00:02:28]} {[%emt 00:00:17]} Qd1+ {[%clk
00:01:12]} {[%emt 00:00:16]} 52. Kh2 {[%clk 00:02:54]} {[%emt 00:00:04]} Qd6+
{[%clk 00:01:18]} {[%emt 00:00:24]} 53. Kh1 {[%clk 00:03:17]} {[%emt 00:00:07]}
1/2-1/2

[Event "IV Elllobregat Open Chess Tmnt"]
[Site "Sant Boi de Llobregat, Spain"]
[Date "2023.11.30"]
[Round "1.24"]
[White "Arizmendi Martinez, Julen Luis"]
[Black "Lucas, Arthur"]
[Result "1/2-1/2"]
[TimeControl "90min/40moves + 15min/end + 30sec from move 1"]
[WhiteFideId "2205092"]
[BlackFideId "26093073"]
[WhiteElo "2525"]
[BlackElo "2316"]

1. c4 {[%clk 01:29:06]} {[%emt 00:01:53]} e5 {[%clk 01:29:31]} {[%emt
00:01:29]} 2. Nc3 {[%clk 01:23:18]} {[%emt 00:06:18]} Nc6 {[%clk 01:28:47]}
{[%emt 00:01:14]} 3. Nf3 {[%clk 01:16:22]} {[%emt 00:07:26]} f5 {[%clk
01:28:20]} {[%emt 00:00:57]} 4. d4 {[%clk 00:57:56]} {[%emt 00:18:56]} e4
{[%clk 01:27:49]} {[%emt 00:01:02]} 5. d5 {[%clk 00:57:10]} {[%emt 00:01:16]}
exf3 {[%clk 01:19:38]} {[%emt 00:08:41]} 6. dxc6 {[%clk 00:57:03]} {[%emt
00:00:38]} fxg2 {[%clk 01:19:41]} {[%emt 00:00:27]} 7. cxd7+ {[%clk 00:57:20]}
{[%emt 00:00:13]} Qxd7 {[%clk 01:19:47]} {[%emt 00:00:23]} 8. Bxg2 {[%clk
00:55:45]} {[%emt 00:02:05]} Qxd1+ {[%clk 01:20:05]} {[%emt 00:00:12]} 9. Kxd1
{[%clk 00:56:09]} {[%emt 00:00:07]} c6 {[%clk 01:19:36]} {[%emt 00:00:59]} 10.
Be3 {[%clk 00:47:44]} {[%emt 00:08:55]} Be6 {[%clk 01:17:24]} {[%emt 00:02:43]}
11. b3 {[%clk 00:47:32]} {[%emt 00:00:42]} Nf6 {[%clk 01:16:53]} {[%emt
00:01:00]} 12. Kc2 {[%clk 00:44:17]} {[%emt 00:03:45]} Ng4 {[%clk 01:05:30]}
{[%emt 00:11:53]} 13. Bd4 {[%clk 00:43:43]} {[%emt 00:01:04]} c5 {[%clk
01:02:44]} {[%emt 00:03:17]} 14. Be3 {[%clk 00:41:16]} {[%emt 00:02:56]} Nxe3+
{[%clk 00:58:38]} {[%emt 00:04:36]} 15. fxe3 {[%clk 00:41:44]} {[%emt
00:00:02]} O-O-O {[%clk 00:59:00]} {[%emt 00:00:09]} 16. Bd5 {[%clk 00:36:25]}
{[%emt 00:05:48]} Bd7 {[%clk 00:50:32]} {[%emt 00:08:58]} 17. Rad1 {[%clk
00:10:00]} {[%emt 00:26:56]} g6 {[%clk 00:43:50]} {[%emt 00:07:12]} 18. Rd3
{[%clk 00:07:55]} {[%emt 00:02:34]} Bg7 {[%clk 00:42:06]} {[%emt 00:02:14]} 19.
Rhd1 {[%clk 00:06:38]} {[%emt 00:01:46]} b6 {[%clk 00:39:25]} {[%emt 00:03:12]}
20. Bf3 {[%clk 00:02:03]} {[%emt 00:05:05]} Bxc3 {[%clk 00:37:15]} {[%emt
00:02:40]} 21. Kxc3 {[%clk 00:02:31]} {[%emt 00:00:01]} Rhe8 {[%clk 00:37:26]}
{[%emt 00:00:19]} 22. h4 {[%clk 00:01:53]} {[%emt 00:01:08]} Kc7 {[%clk
00:36:15]} {[%emt 00:01:42]} 23. Rg1 {[%clk 00:00:47]} {[%emt 00:01:35]} Be6
{[%clk 00:31:34]} {[%emt 00:05:12]} 24. h5 {[%clk 00:00:43]} {[%emt 00:00:35]}
Bf7 {[%clk 00:31:31]} {[%emt 00:00:32]} 25. Kd2 {[%clk 00:00:39]} {[%emt
00:00:34]} Rg8 {[%clk 00:30:25]} {[%emt 00:01:36]} 26. hxg6 {[%clk 00:01:04]}
{[%emt 00:00:05]} hxg6 {[%clk 00:25:02]} {[%emt 00:05:53]} 27. Rh1 {[%clk
00:00:45]} {[%emt 00:00:49]} Rg7 {[%clk 00:24:58]} {[%emt 00:00:34]} 28. Rxd8
{[%clk 00:00:48]} {[%emt 00:00:27]} Kxd8 {[%clk 00:25:26]} {[%emt 00:00:01]} 29.
Rh8+ {[%clk 00:01:12]} {[%emt 00:00:06]} Rg8 {[%clk 00:25:20]} {[%emt
00:00:36]} 30. Rh7 {[%clk 00:01:19]} {[%emt 00:00:23]} Ke7 {[%clk 00:25:10]}
{[%emt 00:00:40]} 31. Bd5 {[%clk 00:01:07]} {[%emt 00:00:42]} Rf8 {[%clk
00:25:39]} {[%emt 00:00:01]} 32. e4 {[%clk 00:01:14]} {[%emt 00:00:24]} fxe4
{[%clk 00:25:18]} {[%emt 00:00:51]} 33. Ke3 {[%clk 00:01:24]} {[%emt 00:00:19]}
Kf6 {[%clk 00:25:14]} {[%emt 00:00:34]} 34. Kxe4 {[%clk 00:01:26]} {[%emt
00:00:28]} Re8+ {[%clk 00:18:36]} {[%emt 00:07:08]} 35. Kf3 {[%clk 00:01:53]}
{[%emt 00:00:02]} Bxd5+ {[%clk 00:14:01]} {[%emt 00:05:05]} 36. cxd5 {[%clk
00:02:22]} {[%emt 00:00:01]} Ke5 {[%clk 00:14:26]} {[%emt 00:00:05]} 37. e4
{[%clk 00:01:00]} {[%emt 00:01:51]} Kd4 {[%clk 00:14:55]} 38. d6 {[%clk
00:00:36]} {[%emt 00:00:55]} Rf8+ {[%clk 00:06:30]} {[%emt 00:08:55]} 39. Ke2
{[%clk 00:01:05]} {[%emt 00:00:01]} Kxe4 {[%clk 00:04:33]} {[%emt 00:02:27]} 40.
Rxa7 {[%clk 00:16:17]} {[%emt 00:00:18]} Rd8 {[%clk 00:16:32]} {[%emt
00:03:31]} 41. Re7+ {[%emt 00:17:12]} Kd5 {[%clk 00:03:05]} {[%emt 00:03:27]}
42. d7 {[%clk 00:10:21]} {[%emt 00:00:15]} Kc6 {[%clk 00:01:31]} {[%emt
00:02:03]} 43. Re6+ {[%clk 00:10:13]} {[%emt 00:00:38]} Kc7 {[%clk 00:01:47]}
{[%emt 00:00:14]} 44. Rxg6 {[%clk 00:10:20]} {[%emt 00:00:23]} Rxd7 {[%clk
00:01:28]} {[%emt 00:00:49]} 45. a4 {[%clk 00:07:22]} {[%emt 00:03:28]} Kb7
{[%clk 00:01:24]} {[%emt 00:00:34]} 46. Rg3 {[%clk 00:07:36]} {[%emt 00:00:16]}
Ka6 {[%clk 00:01:29]} {[%emt 00:00:25]} 47. Rd3 {[%clk 00:07:57]} {[%emt
00:00:09]} Rh7 {[%clk 00:00:38]} {[%emt 00:01:21]} 48. Kd2 {[%clk 00:08:12]}
{[%emt 00:00:15]} Ka5 {[%clk 00:00:49]} {[%emt 00:00:19]} 49. Kc3 {[%clk
00:08:35]} {[%emt 00:00:07]} Rh1 {[%clk 00:00:42]} {[%emt 00:00:37]} 50. Rg3
{[%clk 00:07:35]} {[%emt 00:01:30]} Rh4 {[%clk 00:00:40]} {[%emt 00:00:32]} 51.
Rg8 {[%clk 00:06:55]} {[%emt 00:01:09]} Rh3+ {[%clk 00:00:46]} {[%emt
00:00:24]} 52. Kc4 {[%clk 00:06:54]} {[%emt 00:00:31]} Rh4+ {[%clk 00:01:11]}
{[%emt 00:00:06]} 53. Kc3 {[%clk 00:07:19]} {[%emt 00:00:05]} Rh3+ {[%clk
00:01:38]} {[%emt 00:00:03]} 54. Kc4 {[%clk 00:07:45]} {[%emt 00:00:05]} Rh4+
{[%clk 00:02:05]} {[%emt 00:00:03]} 55. Kc3 {[%clk 00:08:10]} {[%emt 00:00:04]}
Rh3+ {[%clk 00:02:32]} {[%emt 00:00:04]} 1/2-1/2

[Event "IV Elllobregat Open Chess Tmnt"]
[Site "Sant Boi de Llobregat, Spain"]
[Date "2023.11.30"]
[Round "1.25"]
[White "Torrecillas Martinez, Antonio"]
[Black "Sankalp, Gupta"]
[Result "0-1"]
[TimeControl "90min/40moves + 15min/end + 30sec from move 1"]
[WhiteFideId "2200392"]
[BlackFideId "5097010"]
[WhiteElo "2310"]
[BlackElo "2523"]

1. e4 {[%clk 01:30:59]} {[%emt 00:13:01]} c6 {[%clk 01:30:33]} {[%emt
00:00:27]} 2. Nc3 {[%clk 01:31:23]} {[%emt 00:00:06]} d5 {[%clk 01:30:58]}
{[%emt 00:00:05]} 3. Nf3 {[%clk 01:31:47]} {[%emt 00:00:05]} dxe4 {[%clk
01:31:19]} {[%emt 00:00:09]} 4. Nxe4 {[%clk 01:32:11]} {[%emt 00:00:06]} Nf6
{[%clk 01:31:42]} {[%emt 00:00:07]} 5. Qe2 {[%clk 01:32:27]} {[%emt 00:00:14]}
Nxe4 {[%clk 01:31:28]} {[%emt 00:00:43]} 6. Qxe4 {[%clk 01:32:52]} {[%emt
00:00:05]} Nd7 {[%clk 01:31:35]} {[%emt 00:00:24]} 7. Bc4 {[%clk 01:32:46]}
{[%emt 00:00:36]} Nf6 {[%clk 01:32:02]} {[%emt 00:00:03]} 8. Ne5 {[%clk
01:31:58]} {[%emt 00:01:18]} e6 {[%clk 01:32:17]} {[%emt 00:00:16]} 9. Qe2
{[%clk 01:32:07]} {[%emt 00:00:21]} b5 {[%clk 01:32:15]} {[%emt 00:00:33]} 10.
Bd3 {[%clk 01:29:38]} {[%emt 00:02:59]} Qc7 {[%clk 01:31:31]} {[%emt 00:01:13]}
11. b3 {[%clk 01:18:03]} {[%emt 00:12:04]} Bd6 {[%clk 01:30:44]} {[%emt
00:01:17]} 12. Bb2 {[%clk 01:14:01]} {[%emt 00:04:32]} Nd5 {[%clk 01:31:07]}
{[%emt 00:00:08]} 13. g3 {[%clk 01:10:32]} {[%emt 00:03:59]} Nb4 {[%clk
01:22:12]} {[%emt 00:09:25]} 14. f4 {[%clk 01:03:08]} {[%emt 00:07:53]} O-O
{[%clk 01:16:42]} {[%emt 00:06:00]} 15. Be4 {[%clk 00:56:07]} {[%emt 00:07:31]}
Bb7 {[%clk 01:00:33]} {[%emt 00:16:39]} 16. a3 {[%clk 00:49:52]} {[%emt
00:06:45]} Na6 {[%clk 00:56:28]} {[%emt 00:04:35]} 17. O-O {[%clk 00:42:53]}
{[%emt 00:07:29]} f6 {[%clk 00:49:08]} {[%emt 00:07:50]} 18. Nd3 {[%clk
00:38:32]} {[%emt 00:04:50]} Qb6+ {[%clk 00:46:00]} {[%emt 00:03:38]} 19. Kg2
{[%clk 00:34:57]} {[%emt 00:04:05]} c5 {[%clk 00:46:06]} {[%emt 00:00:25]} 20.
Qf3 {[%clk 00:27:18]} {[%emt 00:08:08]} Bxe4 {[%clk 00:44:05]} {[%emt
00:02:31]} 21. Qxe4 {[%clk 00:27:46]} {[%emt 00:00:02]} Nc7 {[%clk 00:42:41]}
{[%emt 00:01:54]} 22. Rfe1 {[%clk 00:23:01]} {[%emt 00:05:15]} Rad8 {[%clk
00:40:38]} {[%emt 00:02:33]} 23. Re2 {[%clk 00:21:37]} {[%emt 00:01:54]} Rf7
{[%clk 00:29:23]} {[%emt 00:11:45]} 24. a4 {[%clk 00:19:39]} {[%emt 00:02:28]}
c4 {[%clk 00:24:23]} {[%emt 00:05:30]} 25. bxc4 {[%clk 00:14:26]} {[%emt
00:05:43]} f5 {[%clk 00:24:51]} {[%emt 00:00:02]} 26. c5 {[%clk 00:12:35]}
{[%emt 00:02:21]} Bxc5 {[%clk 00:23:00]} {[%emt 00:02:21]} 27. Qf3 {[%clk
00:11:33]} {[%emt 00:01:31]} bxa4 {[%clk 00:23:22]} {[%emt 00:00:09]} 28. Nxc5
{[%clk 00:06:45]} {[%emt 00:05:17]} Qxb2 {[%clk 00:21:46]} {[%emt 00:02:06]} 29.
Rxa4 {[%clk 00:06:09]} {[%emt 00:01:07]} Qxc2 {[%clk 00:19:26]} {[%emt
00:02:49]} 30. d4 {[%clk 00:02:14]} {[%emt 00:04:25]} Qd1 {[%clk 00:17:36]}
{[%emt 00:02:21]} 31. Rxa7 {[%clk 00:01:33]} {[%emt 00:01:12]} Rxd4 {[%clk
00:17:33]} {[%emt 00:00:33]} 32. Qe3 {[%clk 00:00:47]} {[%emt 00:01:16]} h6
{[%clk 00:13:37]} {[%emt 00:04:25]} 33. Raa2 {[%clk 00:00:48]} {[%emt
00:00:29]} Nd5 {[%clk 00:07:02]} {[%emt 00:07:04]} 34. Qxe6 {[%clk 00:00:45]}
{[%emt 00:00:33]} Rxf4 {[%clk 00:04:46]} {[%emt 00:02:47]} 35. Rf2 {[%clk
00:00:41]} {[%emt 00:00:34]} Re4 {[%clk 00:03:10]} {[%emt 00:02:07]} 36. Ra8+
{[%clk 00:00:33]} {[%emt 00:00:38]} Kh7 {[%clk 00:03:38]} {[%emt 00:00:01]} 0-1